Workbook

Sheet 78
A2: Новые данные (+) | B2: № | C2: Наименование агрегата | D2: Чертёжный номер | E2: Заводской номер | F2: Дата выпуска | G2: Дата ремонта | H2: Место ремонта | I2: Количество ремонтов | J2: Гарантия до | K2: дата установки агрегата на вертолет | L2: Назнач. ресурс | N2: Межрем. ресурс | P2: Наработка до установки | R2: Наработка вертолёта при установке агрегата | S2: Наработка | U2: Остаток ресурса час. | V2: Дата снятия агрегата по выработке ресурса | W2: Бортовой номер вертолета
L3: часов | M3: лет | N3: часов | O3: лет | P3: ППР | Q3: СНЭ | S3: СНЭ | T3: ППР
B5: Вертолет 78 | W5: 78
B6: 1 | C6: Двигатель | D6: ТВ3-117МТ | L6: 4500 | N6: 1143 | O6: 12 | P6: 0 | Q6: 655 | S6: =SUM(S$7,-R6,Q6) -> 2395 | T6: =IF(ISBLANK(P6),0,SUM(S$7,-R6,P6)) -> 999 | U6: =IF(ISBLANK(N6),L6-S6,IF(AND(ISBLANK(G6),L6-S6>N6-S6),N6-S6,IF(AND(ISNONTEXT(G6),L6-S6>N6-T6),N6-T6,L6-S6))) -> 1 | V6: =IF(OR(AND(NOT(ISBLANK(G6)),M6>0,O6>0,F6+M6*365>G6+O6*365),AND(NOT(ISBLANK(G6)),ISBLANK(M6),O6>0)),G6+O6*365+IF(DAY(G6)>=DAY(G6+O6*365),DAY(G6)-DAY(G6+O6*365),IF(OR(EXACT(MONTH(G6),$W$34:$W$35)),31-DAY(G6+O6*365)+DAY(G6),IF(OR(EXACT(MONTH(G6),$X$34:$X$35)),30-DAY(G6+O6*365)+DAY(G6),28-DAY(G6+O6*365)+DAY(G6)))),IF(AND(ISBLANK(G6),OR(ISBLANK(M6),O6>0)),F6+O6*365+IF(DAY(F6)>=DAY(F6+O6*365),DAY(F6)-DAY(F6+O6*365),IF(OR(EXACT(MONTH(F6),$W$34:$W$35)),31-DAY(F6+O6*365)+DAY(F6),IF(OR(EXACT(MONTH(F6),$X$34:$X$35)),30-DAY(F6+O6*365)+DAY(F6),28-DAY(F6+O6*365)+DAY(F6)))),F6+M6*365+IF(DAY(F6)>=DAY(F6+365*M6),DAY(F6)-DAY(F6+M6*365),IF(OR(EXACT(MONTH(F6),$W$34:$W$35)),31-DAY(F6+M6*365)+DAY(F6),IF(OR(EXACT(MONTH(F6),$X$34:$X$35)),30-DAY(F6+M6*365)+DAY(F6),28-DAY(F6+M6*365)+DAY(F6)))))) -> 1911-12-28 | W6: 78
B7: 2 | C7: Двигатель | D7: ТВ3-117МТ | L7: 4500 | N7: 1500 | O7: 12 | P7: 0 | Q7: 875 | S7: 999 | T7: 999 | U7: 1 | V7: =IF(OR(AND(NOT(ISBLANK(G7)),M7>0,O7>0,F7+M7*365>G7+O7*365),AND(NOT(ISBLANK(G7)),ISBLANK(M7),O7>0)),G7+O7*365+IF(DAY(G7)>=DAY(G7+O7*365),DAY(G7)-DAY(G7+O7*365),IF(OR(EXACT(MONTH(G7),$W$34:$W$35)),31-DAY(G7+O7*365)+DAY(G7),IF(OR(EXACT(MONTH(G7),$X$34:$X$35)),30-DAY(G7+O7*365)+DAY(G7),28-DAY(G7+O7*365)+DAY(G7)))),IF(AND(ISBLANK(G7),OR(ISBLANK(M7),O7>0)),F7+O7*365+IF(DAY(F7)>=DAY(F7+O7*365),DAY(F7)-DAY(F7+O7*365),IF(OR(EXACT(MONTH(F7),$W$34:$W$35)),31-DAY(F7+O7*365)+DAY(F7),IF(OR(EXACT(MONTH(F7),$X$34:$X$35)),30-DAY(F7+O7*365)+DAY(F7),28-DAY(F7+O7*365)+DAY(F7)))),F7+M7*365+IF(DAY(F7)>=DAY(F7+365*M7),DAY(F7)-DAY(F7+M7*365),IF(OR(EXACT(MONTH(F7),$W$34:$W$35)),31-DAY(F7+M7*365)+DAY(F7),IF(OR(EXACT(MONTH(F7),$X$34:$X$35)),30-DAY(F7+M7*365)+DAY(F7),28-DAY(F7+M7*365)+DAY(F7)))))) -> 1911-12-28 | W7: 78
B8: 4 | C8: Лопасть НВ | D8: 8АТ-2710-00 | L8: 2000 | M8: 7 | Q8: 0 | S8: 515 | T8: 0 | U8: 1 | V8: =IF(OR(AND(NOT(ISBLANK(G8)),M8>0,O8>0,F8+M8*365>G8+O8*365),AND(NOT(ISBLANK(G8)),ISBLANK(M8),O8>0)),G8+O8*365+IF(DAY(G8)>=DAY(G8+O8*365),DAY(G8)-DAY(G8+O8*365),IF(OR(EXACT(MONTH(G8),$W$34:$W$35)),31-DAY(G8+O8*365)+DAY(G8),IF(OR(EXACT(MONTH(G8),$X$34:$X$35)),30-DAY(G8+O8*365)+DAY(G8),28-DAY(G8+O8*365)+DAY(G8)))),IF(AND(ISBLANK(G8),OR(ISBLANK(M8),O8>0)),F8+O8*365+IF(DAY(F8)>=DAY(F8+O8*365),DAY(F8)-DAY(F8+O8*365),IF(OR(EXACT(MONTH(F8),$W$34:$W$35)),31-DAY(F8+O8*365)+DAY(F8),IF(OR(EXACT(MONTH(F8),$X$34:$X$35)),30-DAY(F8+O8*365)+DAY(F8),28-DAY(F8+O8*365)+DAY(F8)))),F8+M8*365+IF(DAY(F8)>=DAY(F8+365*M8),DAY(F8)-DAY(F8+M8*365),IF(OR(EXACT(MONTH(F8),$W$34:$W$35)),31-DAY(F8+M8*365)+DAY(F8),IF(OR(EXACT(MONTH(F8),$X$34:$X$35)),30-DAY(F8+M8*365)+DAY(F8),28-DAY(F8+M8*365)+DAY(F8)))))) -> 1906-12-28 | W8: 78
B9: 5 | C9: Лопасть НВ | D9: 8АТ-2710-00 | L9: 2000 | M9: 7 | Q9: 0 | S9: 2395 | T9: 0 | U9: 1 | V9: =IF(OR(AND(NOT(ISBLANK(G9)),M9>0,O9>0,F9+M9*365>G9+O9*365),AND(NOT(ISBLANK(G9)),ISBLANK(M9),O9>0)),G9+O9*365+IF(DAY(G9)>=DAY(G9+O9*365),DAY(G9)-DAY(G9+O9*365),IF(OR(EXACT(MONTH(G9),$W$34:$W$35)),31-DAY(G9+O9*365)+DAY(G9),IF(OR(EXACT(MONTH(G9),$X$34:$X$35)),30-DAY(G9+O9*365)+DAY(G9),28-DAY(G9+O9*365)+DAY(G9)))),IF(AND(ISBLANK(G9),OR(ISBLANK(M9),O9>0)),F9+O9*365+IF(DAY(F9)>=DAY(F9+O9*365),DAY(F9)-DAY(F9+O9*365),IF(OR(EXACT(MONTH(F9),$W$34:$W$35)),31-DAY(F9+O9*365)+DAY(F9),IF(OR(EXACT(MONTH(F9),$X$34:$X$35)),30-DAY(F9+O9*365)+DAY(F9),28-DAY(F9+O9*365)+DAY(F9)))),F9+M9*365+IF(DAY(F9)>=DAY(F9+365*M9),DAY(F9)-DAY(F9+M9*365),IF(OR(EXACT(MONTH(F9),$W$34:$W$35)),31-DAY(F9+M9*365)+DAY(F9),IF(OR(EXACT(MONTH(F9),$X$34:$X$35)),30-DAY(F9+M9*365)+DAY(F9),28-DAY(F9+M9*365)+DAY(F9)))))) -> 1906-12-28 | W9: 78
B10: 6 | C10: Лопасть НВ | D10: 8АТ-2710-00 | L10: 2000 | M10: 7 | Q10: 0 | S10: 999 | T10: 0 | U10: 1 | V10: =IF(OR(AND(NOT(ISBLANK(G10)),M10>0,O10>0,F10+M10*365>G10+O10*365),AND(NOT(ISBLANK(G10)),ISBLANK(M10),O10>0)),G10+O10*365+IF(DAY(G10)>=DAY(G10+O10*365),DAY(G10)-DAY(G10+O10*365),IF(OR(EXACT(MONTH(G10),$W$34:$W$35)),31-DAY(G10+O10*365)+DAY(G10),IF(OR(EXACT(MONTH(G10),$X$34:$X$35)),30-DAY(G10+O10*365)+DAY(G10),28-DAY(G10+O10*365)+DAY(G10)))),IF(AND(ISBLANK(G10),OR(ISBLANK(M10),O10>0)),F10+O10*365+IF(DAY(F10)>=DAY(F10+O10*365),DAY(F10)-DAY(F10+O10*365),IF(OR(EXACT(MONTH(F10),$W$34:$W$35)),31-DAY(F10+O10*365)+DAY(F10),IF(OR(EXACT(MONTH(F10),$X$34:$X$35)),30-DAY(F10+O10*365)+DAY(F10),28-DAY(F10+O10*365)+DAY(F10)))),F10+M10*365+IF(DAY(F10)>=DAY(F10+365*M10),DAY(F10)-DAY(F10+M10*365),IF(OR(EXACT(MONTH(F10),$W$34:$W$35)),31-DAY(F10+M10*365)+DAY(F10),IF(OR(EXACT(MONTH(F10),$X$34:$X$35)),30-DAY(F10+M10*365)+DAY(F10),28-DAY(F10+M10*365)+DAY(F10)))))) -> 1906-12-28 | W10: 78
B11: 7 | C11: Лопасть НВ | D11: 8АТ-2710-00 | L11: 2000 | M11: 7 | Q11: 0 | S11: 515 | T11: 0 | U11: 1 | V11: =IF(OR(AND(NOT(ISBLANK(G11)),M11>0,O11>0,F11+M11*365>G11+O11*365),AND(NOT(ISBLANK(G11)),ISBLANK(M11),O11>0)),G11+O11*365+IF(DAY(G11)>=DAY(G11+O11*365),DAY(G11)-DAY(G11+O11*365),IF(OR(EXACT(MONTH(G11),$W$34:$W$35)),31-DAY(G11+O11*365)+DAY(G11),IF(OR(EXACT(MONTH(G11),$X$34:$X$35)),30-DAY(G11+O11*365)+DAY(G11),28-DAY(G11+O11*365)+DAY(G11)))),IF(AND(ISBLANK(G11),OR(ISBLANK(M11),O11>0)),F11+O11*365+IF(DAY(F11)>=DAY(F11+O11*365),DAY(F11)-DAY(F11+O11*365),IF(OR(EXACT(MONTH(F11),$W$34:$W$35)),31-DAY(F11+O11*365)+DAY(F11),IF(OR(EXACT(MONTH(F11),$X$34:$X$35)),30-DAY(F11+O11*365)+DAY(F11),28-DAY(F11+O11*365)+DAY(F11)))),F11+M11*365+IF(DAY(F11)>=DAY(F11+365*M11),DAY(F11)-DAY(F11+M11*365),IF(OR(EXACT(MONTH(F11),$W$34:$W$35)),31-DAY(F11+M11*365)+DAY(F11),IF(OR(EXACT(MONTH(F11),$X$34:$X$35)),30-DAY(F11+M11*365)+DAY(F11),28-DAY(F11+M11*365)+DAY(F11)))))) -> 1906-12-28 | W11: 78
B12: 8 | C12: Лопасть НВ | D12: 8АТ-2710-00 | L12: 2000 | M12: 7 | Q12: 0 | S12: 2395 | T12: 0 | U12: 1 | V12: =IF(OR(AND(NOT(ISBLANK(G12)),M12>0,O12>0,F12+M12*365>G12+O12*365),AND(NOT(ISBLANK(G12)),ISBLANK(M12),O12>0)),G12+O12*365+IF(DAY(G12)>=DAY(G12+O12*365),DAY(G12)-DAY(G12+O12*365),IF(OR(EXACT(MONTH(G12),$W$34:$W$35)),31-DAY(G12+O12*365)+DAY(G12),IF(OR(EXACT(MONTH(G12),$X$34:$X$35)),30-DAY(G12+O12*365)+DAY(G12),28-DAY(G12+O12*365)+DAY(G12)))),IF(AND(ISBLANK(G12),OR(ISBLANK(M12),O12>0)),F12+O12*365+IF(DAY(F12)>=DAY(F12+O12*365),DAY(F12)-DAY(F12+O12*365),IF(OR(EXACT(MONTH(F12),$W$34:$W$35)),31-DAY(F12+O12*365)+DAY(F12),IF(OR(EXACT(MONTH(F12),$X$34:$X$35)),30-DAY(F12+O12*365)+DAY(F12),28-DAY(F12+O12*365)+DAY(F12)))),F12+M12*365+IF(DAY(F12)>=DAY(F12+365*M12),DAY(F12)-DAY(F12+M12*365),IF(OR(EXACT(MONTH(F12),$W$34:$W$35)),31-DAY(F12+M12*365)+DAY(F12),IF(OR(EXACT(MONTH(F12),$X$34:$X$35)),30-DAY(F12+M12*365)+DAY(F12),28-DAY(F12+M12*365)+DAY(F12)))))) -> 1906-12-28 | W12: 78
B13: 9 | C13: Лопасть НВ | D13: 8АТ-2710-00 | L13: 3000 | M13: 7 | Q13: 0 | S13: =SUM(S$7,-R13,Q13) -> 2395 | T13: =IF(ISBLANK(P13),0,SUM(S$7,-R13,P13)) -> 0 | U13: =IF(ISBLANK(N13),L13-S13,IF(AND(ISBLANK(G13),L13-S13>N13-S13),N13-S13,IF(AND(ISNONTEXT(G13),L13-S13>N13-T13),N13-T13,L13-S13))) -> 1 | V13: =IF(OR(AND(NOT(ISBLANK(G13)),M13>0,O13>0,F13+M13*365>G13+O13*365),AND(NOT(ISBLANK(G13)),ISBLANK(M13),O13>0)),G13+O13*365+IF(DAY(G13)>=DAY(G13+O13*365),DAY(G13)-DAY(G13+O13*365),IF(OR(EXACT(MONTH(G13),$W$34:$W$35)),31-DAY(G13+O13*365)+DAY(G13),IF(OR(EXACT(MONTH(G13),$X$34:$X$35)),30-DAY(G13+O13*365)+DAY(G13),28-DAY(G13+O13*365)+DAY(G13)))),IF(AND(ISBLANK(G13),OR(ISBLANK(M13),O13>0)),F13+O13*365+IF(DAY(F13)>=DAY(F13+O13*365),DAY(F13)-DAY(F13+O13*365),IF(OR(EXACT(MONTH(F13),$W$34:$W$35)),31-DAY(F13+O13*365)+DAY(F13),IF(OR(EXACT(MONTH(F13),$X$34:$X$35)),30-DAY(F13+O13*365)+DAY(F13),28-DAY(F13+O13*365)+DAY(F13)))),F13+M13*365+IF(DAY(F13)>=DAY(F13+365*M13),DAY(F13)-DAY(F13+M13*365),IF(OR(EXACT(MONTH(F13),$W$34:$W$35)),31-DAY(F13+M13*365)+DAY(F13),IF(OR(EXACT(MONTH(F13),$X$34:$X$35)),30-DAY(F13+M13*365)+DAY(F13),28-DAY(F13+M13*365)+DAY(F13)))))) -> 1906-12-28 | W13: 78
B14: 10 | C14: Лопасть НВ | D14: 8АТ-2710-00 | L14: 3000 | M14: 7 | Q14: 0 | S14: 2395 | T14: 0 | U14: 1 | V14: =IF(OR(AND(NOT(ISBLANK(G14)),M14>0,O14>0,F14+M14*365>G14+O14*365),AND(NOT(ISBLANK(G14)),ISBLANK(M14),O14>0)),G14+O14*365+IF(DAY(G14)>=DAY(G14+O14*365),DAY(G14)-DAY(G14+O14*365),IF(OR(EXACT(MONTH(G14),$W$34:$W$35)),31-DAY(G14+O14*365)+DAY(G14),IF(OR(EXACT(MONTH(G14),$X$34:$X$35)),30-DAY(G14+O14*365)+DAY(G14),28-DAY(G14+O14*365)+DAY(G14)))),IF(AND(ISBLANK(G14),OR(ISBLANK(M14),O14>0)),F14+O14*365+IF(DAY(F14)>=DAY(F14+O14*365),DAY(F14)-DAY(F14+O14*365),IF(OR(EXACT(MONTH(F14),$W$34:$W$35)),31-DAY(F14+O14*365)+DAY(F14),IF(OR(EXACT(MONTH(F14),$X$34:$X$35)),30-DAY(F14+O14*365)+DAY(F14),28-DAY(F14+O14*365)+DAY(F14)))),F14+M14*365+IF(DAY(F14)>=DAY(F14+365*M14),DAY(F14)-DAY(F14+M14*365),IF(OR(EXACT(MONTH(F14),$W$34:$W$35)),31-DAY(F14+M14*365)+DAY(F14),IF(OR(EXACT(MONTH(F14),$X$34:$X$35)),30-DAY(F14+M14*365)+DAY(F14),28-DAY(F14+M14*365)+DAY(F14)))))) -> 1906-12-28 | W14: 78
B15: 11 | C15: Лопасть НВ | D15: 8АТ-2710-00 | L15: 3000 | M15: 7 | Q15: 0 | S15: 2395 | T15: 0 | U15: 1 | V15: =IF(OR(AND(NOT(ISBLANK(G15)),M15>0,O15>0,F15+M15*365>G15+O15*365),AND(NOT(ISBLANK(G15)),ISBLANK(M15),O15>0)),G15+O15*365+IF(DAY(G15)>=DAY(G15+O15*365),DAY(G15)-DAY(G15+O15*365),IF(OR(EXACT(MONTH(G15),$W$34:$W$35)),31-DAY(G15+O15*365)+DAY(G15),IF(OR(EXACT(MONTH(G15),$X$34:$X$35)),30-DAY(G15+O15*365)+DAY(G15),28-DAY(G15+O15*365)+DAY(G15)))),IF(AND(ISBLANK(G15),OR(ISBLANK(M15),O15>0)),F15+O15*365+IF(DAY(F15)>=DAY(F15+O15*365),DAY(F15)-DAY(F15+O15*365),IF(OR(EXACT(MONTH(F15),$W$34:$W$35)),31-DAY(F15+O15*365)+DAY(F15),IF(OR(EXACT(MONTH(F15),$X$34:$X$35)),30-DAY(F15+O15*365)+DAY(F15),28-DAY(F15+O15*365)+DAY(F15)))),F15+M15*365+IF(DAY(F15)>=DAY(F15+365*M15),DAY(F15)-DAY(F15+M15*365),IF(OR(EXACT(MONTH(F15),$W$34:$W$35)),31-DAY(F15+M15*365)+DAY(F15),IF(OR(EXACT(MONTH(F15),$X$34:$X$35)),30-DAY(F15+M15*365)+DAY(F15),28-DAY(F15+M15*365)+DAY(F15)))))) -> 1906-12-28 | W15: 78
B16: 12 | C16: Лопасть НВ | D16: 8АТ-2710-00 | L16: 3000 | M16: 7 | Q16: 0 | S16: 2395 | T16: 0 | U16: 1 | V16: =IF(OR(AND(NOT(ISBLANK(G16)),M16>0,O16>0,F16+M16*365>G16+O16*365),AND(NOT(ISBLANK(G16)),ISBLANK(M16),O16>0)),G16+O16*365+IF(DAY(G16)>=DAY(G16+O16*365),DAY(G16)-DAY(G16+O16*365),IF(OR(EXACT(MONTH(G16),$W$34:$W$35)),31-DAY(G16+O16*365)+DAY(G16),IF(OR(EXACT(MONTH(G16),$X$34:$X$35)),30-DAY(G16+O16*365)+DAY(G16),28-DAY(G16+O16*365)+DAY(G16)))),IF(AND(ISBLANK(G16),OR(ISBLANK(M16),O16>0)),F16+O16*365+IF(DAY(F16)>=DAY(F16+O16*365),DAY(F16)-DAY(F16+O16*365),IF(OR(EXACT(MONTH(F16),$W$34:$W$35)),31-DAY(F16+O16*365)+DAY(F16),IF(OR(EXACT(MONTH(F16),$X$34:$X$35)),30-DAY(F16+O16*365)+DAY(F16),28-DAY(F16+O16*365)+DAY(F16)))),F16+M16*365+IF(DAY(F16)>=DAY(F16+365*M16),DAY(F16)-DAY(F16+M16*365),IF(OR(EXACT(MONTH(F16),$W$34:$W$35)),31-DAY(F16+M16*365)+DAY(F16),IF(OR(EXACT(MONTH(F16),$X$34:$X$35)),30-DAY(F16+M16*365)+DAY(F16),28-DAY(F16+M16*365)+DAY(F16)))))) -> 1906-12-28 | W16: 78

Sheet 79
A2: Новые данные (+) | B2: № | C2: Наименование агрегата | D2: Чертёжный номер | E2: Заводской номер | F2: Дата выпуска | G2: Дата ремонта | H2: Место ремонта | I2: Количество ремонтов | J2: Гарантия до | K2: дата установки агрегата на вертолет | L2: Назнач. ресурс | N2: Межрем. ресурс | P2: Наработка до установки | R2: Наработка вертолёта при установке агрегата | S2: Наработка | U2: Остаток ресурса час. | V2: Дата снятия агрегата по выработке ресурса | W2: Бортовой номер вертолета
L3: часов | M3: лет | N3: часов | O3: лет | P3: ППР | Q3: СНЭ | S3: СНЭ | T3: ППР
B5: Вертолет 79 | W5: 79 | X5: ВиД | Y5: АО | Z5: РЭО
B6: 1 | C6: Автомат перекоса | D6: 8-1950-000 | I6: 1 | L6: 6000 | N6: 1000 | O6: 8 | P6: 0 | Q6: 1396 | S6: =SUM(S$7,-R6,Q6) -> 2395 | T6: =IF(ISBLANK(P6),0,SUM(S$7,-R6,P6)) -> 999 | U6: =IF(ISBLANK(N6),L6-S6,IF(AND(ISBLANK(G6),L6-S6>N6-S6),N6-S6,IF(AND(ISNONTEXT(G6),L6-S6>N6-T6),N6-T6,L6-S6))) -> 1 | V6: =IF(OR(AND(NOT(ISBLANK(G6)),M6>0,O6>0,F6+M6*365>G6+O6*365),AND(NOT(ISBLANK(G6)),ISBLANK(M6),O6>0)),G6+O6*365+IF(DAY(G6)>=DAY(G6+O6*365),DAY(G6)-DAY(G6+O6*365),IF(OR(EXACT(MONTH(G6),$W$23:$W$24)),31-DAY(G6+O6*365)+DAY(G6),IF(OR(EXACT(MONTH(G6),$X$23:$X$24)),30-DAY(G6+O6*365)+DAY(G6),28-DAY(G6+O6*365)+DAY(G6)))),IF(AND(ISBLANK(G6),OR(ISBLANK(M6),O6>0)),F6+O6*365+IF(DAY(F6)>=DAY(F6+O6*365),DAY(F6)-DAY(F6+O6*365),IF(OR(EXACT(MONTH(F6),$W$23:$W$24)),31-DAY(F6+O6*365)+DAY(F6),IF(OR(EXACT(MONTH(F6),$X$23:$X$24)),30-DAY(F6+O6*365)+DAY(F6),28-DAY(F6+O6*365)+DAY(F6)))),F6+M6*365+IF(DAY(F6)>=DAY(F6+365*M6),DAY(F6)-DAY(F6+M6*365),IF(OR(EXACT(MONTH(F6),$W$23:$W$24)),31-DAY(F6+M6*365)+DAY(F6),IF(OR(EXACT(MONTH(F6),$X$23:$X$24)),30-DAY(F6+M6*365)+DAY(F6),28-DAY(F6+M6*365)+DAY(F6)))))) -> 1907-12-28 | W6: 79
B7: 2 | C7: Гл. редуктор | D7: ВР-14 | L7: 8000 | N7: 2000 | O7: 10 | S7: 999 | T7: 0 | U7: 1001 | V7: =IF(OR(AND(NOT(ISBLANK(G7)),M7>0,O7>0,F7+M7*365>G7+O7*365),AND(NOT(ISBLANK(G7)),ISBLANK(M7),O7>0)),G7+O7*365+IF(DAY(G7)>=DAY(G7+O7*365),DAY(G7)-DAY(G7+O7*365),IF(OR(EXACT(MONTH(G7),$W$23:$W$24)),31-DAY(G7+O7*365)+DAY(G7),IF(OR(EXACT(MONTH(G7),$X$23:$X$24)),30-DAY(G7+O7*365)+DAY(G7),28-DAY(G7+O7*365)+DAY(G7)))),IF(AND(ISBLANK(G7),OR(ISBLANK(M7),O7>0)),F7+O7*365+IF(DAY(F7)>=DAY(F7+O7*365),DAY(F7)-DAY(F7+O7*365),IF(OR(EXACT(MONTH(F7),$W$23:$W$24)),31-DAY(F7+O7*365)+DAY(F7),IF(OR(EXACT(MONTH(F7),$X$23:$X$24)),30-DAY(F7+O7*365)+DAY(F7),28-DAY(F7+O7*365)+DAY(F7)))),F7+M7*365+IF(DAY(F7)>=DAY(F7+365*M7),DAY(F7)-DAY(F7+M7*365),IF(OR(EXACT(MONTH(F7),$W$23:$W$24)),31-DAY(F7+M7*365)+DAY(F7),IF(OR(EXACT(MONTH(F7),$X$23:$X$24)),30-DAY(F7+M7*365)+DAY(F7),28-DAY(F7+M7*365)+DAY(F7)))))) -> 1909-12-28 | W7: 79
B8: 3 | C8: Компрессор АК-50 | D8: АК-50Т1сер3 | L8: 2250 | N8: 750 | O8: 6 | Q8: 236 | S8: 515 | T8: 0 | U8: 235 | V8: =IF(OR(AND(NOT(ISBLANK(G8)),M8>0,O8>0,F8+M8*365>G8+O8*365),AND(NOT(ISBLANK(G8)),ISBLANK(M8),O8>0)),G8+O8*365+IF(DAY(G8)>=DAY(G8+O8*365),DAY(G8)-DAY(G8+O8*365),IF(OR(EXACT(MONTH(G8),$W$23:$W$24)),31-DAY(G8+O8*365)+DAY(G8),IF(OR(EXACT(MONTH(G8),$X$23:$X$24)),30-DAY(G8+O8*365)+DAY(G8),28-DAY(G8+O8*365)+DAY(G8)))),IF(AND(ISBLANK(G8),OR(ISBLANK(M8),O8>0)),F8+O8*365+IF(DAY(F8)>=DAY(F8+O8*365),DAY(F8)-DAY(F8+O8*365),IF(OR(EXACT(MONTH(F8),$W$23:$W$24)),31-DAY(F8+O8*365)+DAY(F8),IF(OR(EXACT(MONTH(F8),$X$23:$X$24)),30-DAY(F8+O8*365)+DAY(F8),28-DAY(F8+O8*365)+DAY(F8)))),F8+M8*365+IF(DAY(F8)>=DAY(F8+365*M8),DAY(F8)-DAY(F8+M8*365),IF(OR(EXACT(MONTH(F8),$W$23:$W$24)),31-DAY(F8+M8*365)+DAY(F8),IF(OR(EXACT(MONTH(F8),$X$23:$X$24)),30-DAY(F8+M8*365)+DAY(F8),28-DAY(F8+M8*365)+DAY(F8)))))) -> 1905-12-28 | W8: 79
B9: 4 | C9: Компрессор АК-50 | D9: АК-50Т1сер3 | L9: 2250 | N9: 750 | O9: 6 | Q9: 236 | S9: =SUM(S$7,-R9,Q9) -> 515 | T9: =IF(ISBLANK(P9),0,SUM(S$7,-R9,P9)) -> 0 | U9: =IF(ISBLANK(N9),L9-S9,IF(AND(ISBLANK(G9),L9-S9>N9-S9),N9-S9,IF(AND(ISNONTEXT(G9),L9-S9>N9-T9),N9-T9,L9-S9))) -> 235 | V9: =IF(OR(AND(NOT(ISBLANK(G9)),M9>0,O9>0,F9+M9*365>G9+O9*365),AND(NOT(ISBLANK(G9)),ISBLANK(M9),O9>0)),G9+O9*365+IF(DAY(G9)>=DAY(G9+O9*365),DAY(G9)-DAY(G9+O9*365),IF(OR(EXACT(MONTH(G9),$W$23:$W$24)),31-DAY(G9+O9*365)+DAY(G9),IF(OR(EXACT(MONTH(G9),$X$23:$X$24)),30-DAY(G9+O9*365)+DAY(G9),28-DAY(G9+O9*365)+DAY(G9)))),IF(AND(ISBLANK(G9),OR(ISBLANK(M9),O9>0)),F9+O9*365+IF(DAY(F9)>=DAY(F9+O9*365),DAY(F9)-DAY(F9+O9*365),IF(OR(EXACT(MONTH(F9),$W$23:$W$24)),31-DAY(F9+O9*365)+DAY(F9),IF(OR(EXACT(MONTH(F9),$X$23:$X$24)),30-DAY(F9+O9*365)+DAY(F9),28-DAY(F9+O9*365)+DAY(F9)))),F9+M9*365+IF(DAY(F9)>=DAY(F9+365*M9),DAY(F9)-DAY(F9+M9*365),IF(OR(EXACT(MONTH(F9),$W$23:$W$24)),31-DAY(F9+M9*365)+DAY(F9),IF(OR(EXACT(MONTH(F9),$X$23:$X$24)),30-DAY(F9+M9*365)+DAY(F9),28-DAY(F9+M9*365)+DAY(F9)))))) -> 1905-12-28 | W9: 79
B10: 5 | C10: Компрессор АК-50 | D10: АК-50Т1сер3 | L10: 2250 | N10: 750 | O10: 6 | Q10: 236 | S10: 515 | T10: 0 | U10: 235 | V10: =IF(OR(AND(NOT(ISBLANK(G10)),M10>0,O10>0,F10+M10*365>G10+O10*365),AND(NOT(ISBLANK(G10)),ISBLANK(M10),O10>0)),G10+O10*365+IF(DAY(G10)>=DAY(G10+O10*365),DAY(G10)-DAY(G10+O10*365),IF(OR(EXACT(MONTH(G10),$W$23:$W$24)),31-DAY(G10+O10*365)+DAY(G10),IF(OR(EXACT(MONTH(G10),$X$23:$X$24)),30-DAY(G10+O10*365)+DAY(G10),28-DAY(G10+O10*365)+DAY(G10)))),IF(AND(ISBLANK(G10),OR(ISBLANK(M10),O10>0)),F10+O10*365+IF(DAY(F10)>=DAY(F10+O10*365),DAY(F10)-DAY(F10+O10*365),IF(OR(EXACT(MONTH(F10),$W$23:$W$24)),31-DAY(F10+O10*365)+DAY(F10),IF(OR(EXACT(MONTH(F10),$X$23:$X$24)),30-DAY(F10+O10*365)+DAY(F10),28-DAY(F10+O10*365)+DAY(F10)))),F10+M10*365+IF(DAY(F10)>=DAY(F10+365*M10),DAY(F10)-DAY(F10+M10*365),IF(OR(EXACT(MONTH(F10),$W$23:$W$24)),31-DAY(F10+M10*365)+DAY(F10),IF(OR(EXACT(MONTH(F10),$X$23:$X$24)),30-DAY(F10+M10*365)+DAY(F10),28-DAY(F10+M10*365)+DAY(F10)))))) -> 1905-12-28 | W10: 79

Sheet 77
A2: Новые данные (+) | B2: № | C2: Наименование агрегата | D2: Чертёжный номер | E2: Заводской номер | F2: Дата выпуска | G2: Дата ремонта | H2: Место ремонта | I2: Количество ремонтов | J2: Гарантия до | K2: дата установки агрегата на вертолет | L2: Назнач. ресурс | N2: Межрем. ресурс | P2: Наработка до установки | R2: Наработка вертолёта при установке агрегата | S2: Наработка | U2: Остаток ресурса час. | V2: Дата снятия агрегата по выработке ресурса | W2: Бортовой номер вертолета
L3: часов | M3: лет | N3: часов | O3: лет | P3: ППР | Q3: СНЭ | S3: СНЭ | T3: ППР
B5: Вертолет 77 | W5: 77
B6: 1 | C6: Г/усилитель | D6: РА-60Б | I6: 2 | L6: 9000 | M6: 40 | N6: 1500 | O6: 15 | P6: 0 | Q6: 2042 | R6: 2520 | S6: =SUM(S$14,-R6,Q6) -> -478 | T6: =IF(ISBLANK(P6),0,SUM(S$14,-R6,P6)) -> -2520 | U6: =IF(ISBLANK(N6),L6-S6,IF(AND(ISBLANK(G6),L6-S6>N6-S6),N6-S6,IF(AND(ISNONTEXT(G6),L6-S6>N6-T6),N6-T6,L6-S6))) -> 1978 | V6: =IF(OR(AND(NOT(ISBLANK(G6)),M6>0,O6>0,F6+M6*365>G6+O6*365),AND(NOT(ISBLANK(G6)),ISBLANK(M6),O6>0)),G6+O6*365+IF(DAY(G6)>=DAY(G6+O6*365),DAY(G6)-DAY(G6+O6*365),IF(OR(EXACT(MONTH(G6),$W$36:$W$37)),31-DAY(G6+O6*365)+DAY(G6),IF(OR(EXACT(MONTH(G6),$X$36:$X$37)),30-DAY(G6+O6*365)+DAY(G6),28-DAY(G6+O6*365)+DAY(G6)))),IF(AND(ISBLANK(G6),OR(ISBLANK(M6),O6>0)),F6+O6*365+IF(DAY(F6)>=DAY(F6+O6*365),DAY(F6)-DAY(F6+O6*365),IF(OR(EXACT(MONTH(F6),$W$36:$W$37)),31-DAY(F6+O6*365)+DAY(F6),IF(OR(EXACT(MONTH(F6),$X$36:$X$37)),30-DAY(F6+O6*365)+DAY(F6),28-DAY(F6+O6*365)+DAY(F6)))),F6+M6*365+IF(DAY(F6)>=DAY(F6+365*M6),DAY(F6)-DAY(F6+M6*365),IF(OR(EXACT(MONTH(F6),$W$36:$W$37)),31-DAY(F6+M6*365)+DAY(F6),IF(OR(EXACT(MONTH(F6),$X$36:$X$37)),30-DAY(F6+M6*365)+DAY(F6),28-DAY(F6+M6*365)+DAY(F6)))))) -> 1914-12-28 | W6: 77
B7: 2 | C7: Вентилятор | D7: 8А-6311-00 | I7: 3 | L7: 6500 | N7: 1500 | O7: 15 | P7: 0 | Q7: 2276 | R7: 2520 | S7: -244 | T7: -2520 | U7: 1744 | V7: =IF(OR(AND(NOT(ISBLANK(G7)),M7>0,O7>0,F7+M7*365>G7+O7*365),AND(NOT(ISBLANK(G7)),ISBLANK(M7),O7>0)),G7+O7*365+IF(DAY(G7)>=DAY(G7+O7*365),DAY(G7)-DAY(G7+O7*365),IF(OR(EXACT(MONTH(G7),$W$36:$W$37)),31-DAY(G7+O7*365)+DAY(G7),IF(OR(EXACT(MONTH(G7),$X$36:$X$37)),30-DAY(G7+O7*365)+DAY(G7),28-DAY(G7+O7*365)+DAY(G7)))),IF(AND(ISBLANK(G7),OR(ISBLANK(M7),O7>0)),F7+O7*365+IF(DAY(F7)>=DAY(F7+O7*365),DAY(F7)-DAY(F7+O7*365),IF(OR(EXACT(MONTH(F7),$W$36:$W$37)),31-DAY(F7+O7*365)+DAY(F7),IF(OR(EXACT(MONTH(F7),$X$36:$X$37)),30-DAY(F7+O7*365)+DAY(F7),28-DAY(F7+O7*365)+DAY(F7)))),F7+M7*365+IF(DAY(F7)>=DAY(F7+365*M7),DAY(F7)-DAY(F7+M7*365),IF(OR(EXACT(MONTH(F7),$W$36:$W$37)),31-DAY(F7+M7*365)+DAY(F7),IF(OR(EXACT(MONTH(F7),$X$36:$X$37)),30-DAY(F7+M7*365)+DAY(F7),28-DAY(F7+M7*365)+DAY(F7)))))) -> 1914-12-28 | W7: 77
B8: 3 | C8: КВПВ | D8: 8А-6314-00 | I8: 3 | L8: 4500 | N8: 1500 | O8: 15 | P8: 0 | Q8: 2871 | R8: 2520 | S8: 351 | T8: -2520 | U8: 1149 | V8: =IF(OR(AND(NOT(ISBLANK(G8)),M8>0,O8>0,F8+M8*365>G8+O8*365),AND(NOT(ISBLANK(G8)),ISBLANK(M8),O8>0)),G8+O8*365+IF(DAY(G8)>=DAY(G8+O8*365),DAY(G8)-DAY(G8+O8*365),IF(OR(EXACT(MONTH(G8),$W$36:$W$37)),31-DAY(G8+O8*365)+DAY(G8),IF(OR(EXACT(MONTH(G8),$X$36:$X$37)),30-DAY(G8+O8*365)+DAY(G8),28-DAY(G8+O8*365)+DAY(G8)))),IF(AND(ISBLANK(G8),OR(ISBLANK(M8),O8>0)),F8+O8*365+IF(DAY(F8)>=DAY(F8+O8*365),DAY(F8)-DAY(F8+O8*365),IF(OR(EXACT(MONTH(F8),$W$36:$W$37)),31-DAY(F8+O8*365)+DAY(F8),IF(OR(EXACT(MONTH(F8),$X$36:$X$37)),30-DAY(F8+O8*365)+DAY(F8),28-DAY(F8+O8*365)+DAY(F8)))),F8+M8*365+IF(DAY(F8)>=DAY(F8+365*M8),DAY(F8)-DAY(F8+M8*365),IF(OR(EXACT(MONTH(F8),$W$36:$W$37)),31-DAY(F8+M8*365)+DAY(F8),IF(OR(EXACT(MONTH(F8),$X$36:$X$37)),30-DAY(F8+M8*365)+DAY(F8),28-DAY(F8+M8*365)+DAY(F8)))))) -> 1914-12-28 | W8: 77
B9: 4 | C9: Хв. Вал | D9: 8А-1516-000 | I9: 3 | L9: 6000 | N9: 2000 | O9: 14 | P9: 0 | Q9: 3182 | R9: 2520 | S9: 662 | T9: -2520 | U9: 1338 | V9: =IF(OR(AND(NOT(ISBLANK(G9)),M9>0,O9>0,F9+M9*365>G9+O9*365),AND(NOT(ISBLANK(G9)),ISBLANK(M9),O9>0)),G9+O9*365+IF(DAY(G9)>=DAY(G9+O9*365),DAY(G9)-DAY(G9+O9*365),IF(OR(EXACT(MONTH(G9),$W$36:$W$37)),31-DAY(G9+O9*365)+DAY(G9),IF(OR(EXACT(MONTH(G9),$X$36:$X$37)),30-DAY(G9+O9*365)+DAY(G9),28-DAY(G9+O9*365)+DAY(G9)))),IF(AND(ISBLANK(G9),OR(ISBLANK(M9),O9>0)),F9+O9*365+IF(DAY(F9)>=DAY(F9+O9*365),DAY(F9)-DAY(F9+O9*365),IF(OR(EXACT(MONTH(F9),$W$36:$W$37)),31-DAY(F9+O9*365)+DAY(F9),IF(OR(EXACT(MONTH(F9),$X$36:$X$37)),30-DAY(F9+O9*365)+DAY(F9),28-DAY(F9+O9*365)+DAY(F9)))),F9+M9*365+IF(DAY(F9)>=DAY(F9+365*M9),DAY(F9)-DAY(F9+M9*365),IF(OR(EXACT(MONTH(F9),$W$36:$W$37)),31-DAY(F9+M9*365)+DAY(F9),IF(OR(EXACT(MONTH(F9),$X$36:$X$37)),30-DAY(F9+M9*365)+DAY(F9),28-DAY(F9+M9*365)+DAY(F9)))))) -> 1913-12-28 | W9: 77
B10: 5 | C10: Пром. редуктор | D10: 8А-1515-000 | I10: 3 | L10: 6000 | N10: 2000 | O10: 15 | P10: 0 | Q10: 1864 | R10: 2520 | S10: -656 | T10: -2520 | U10: 2656 | V10: =IF(OR(AND(NOT(ISBLANK(G10)),M10>0,O10>0,F10+M10*365>G10+O10*365),AND(NOT(ISBLANK(G10)),ISBLANK(M10),O10>0)),G10+O10*365+IF(DAY(G10)>=DAY(G10+O10*365),DAY(G10)-DAY(G10+O10*365),IF(OR(EXACT(MONTH(G10),$W$36:$W$37)),31-DAY(G10+O10*365)+DAY(G10),IF(OR(EXACT(MONTH(G10),$X$36:$X$37)),30-DAY(G10+O10*365)+DAY(G10),28-DAY(G10+O10*365)+DAY(G10)))),IF(AND(ISBLANK(G10),OR(ISBLANK(M10),O10>0)),F10+O10*365+IF(DAY(F10)>=DAY(F10+O10*365),DAY(F10)-DAY(F10+O10*365),IF(OR(EXACT(MONTH(F10),$W$36:$W$37)),31-DAY(F10+O10*365)+DAY(F10),IF(OR(EXACT(MONTH(F10),$X$36:$X$37)),30-DAY(F10+O10*365)+DAY(F10),28-DAY(F10+O10*365)+DAY(F10)))),F10+M10*365+IF(DAY(F10)>=DAY(F10+365*M10),DAY(F10)-DAY(F10+M10*365),IF(OR(EXACT(MONTH(F10),$W$36:$W$37)),31-DAY(F10+M10*365)+DAY(F10),IF(OR(EXACT(MONTH(F10),$X$36:$X$37)),30-DAY(F10+M10*365)+DAY(F10),28-DAY(F10+M10*365)+DAY(F10)))))) -> 1914-12-28 | W10: 77
B11: 6 | C11: Пром. редуктор | D11: 8А-1515-001 | I11: 3 | L11: 6000 | N11: 2000 | O11: 15 | P11: 0 | Q11: 1864 | R11: 2520 | S11: =SUM(S$14,-R11,Q11) -> -656 | T11: =IF(ISBLANK(P11),0,SUM(S$14,-R11,P11)) -> -2520 | U11: =IF(ISBLANK(N11),L11-S11,IF(AND(ISBLANK(G11),L11-S11>N11-S11),N11-S11,IF(AND(ISNONTEXT(G11),L11-S11>N11-T11),N11-T11,L11-S11))) -> 2656 | V11: =IF(OR(AND(NOT(ISBLANK(G11)),M11>0,O11>0,F11+M11*365>G11+O11*365),AND(NOT(ISBLANK(G11)),ISBLANK(M11),O11>0)),G11+O11*365+IF(DAY(G11)>=DAY(G11+O11*365),DAY(G11)-DAY(G11+O11*365),IF(OR(EXACT(MONTH(G11),$W$36:$W$37)),31-DAY(G11+O11*365)+DAY(G11),IF(OR(EXACT(MONTH(G11),$X$36:$X$37)),30-DAY(G11+O11*365)+DAY(G11),28-DAY(G11+O11*365)+DAY(G11)))),IF(AND(ISBLANK(G11),OR(ISBLANK(M11),O11>0)),F11+O11*365+IF(DAY(F11)>=DAY(F11+O11*365),DAY(F11)-DAY(F11+O11*365),IF(OR(EXACT(MONTH(F11),$W$36:$W$37)),31-DAY(F11+O11*365)+DAY(F11),IF(OR(EXACT(MONTH(F11),$X$36:$X$37)),30-DAY(F11+O11*365)+DAY(F11),28-DAY(F11+O11*365)+DAY(F11)))),F11+M11*365+IF(DAY(F11)>=DAY(F11+365*M11),DAY(F11)-DAY(F11+M11*365),IF(OR(EXACT(MONTH(F11),$W$36:$W$37)),31-DAY(F11+M11*365)+DAY(F11),IF(OR(EXACT(MONTH(F11),$X$36:$X$37)),30-DAY(F11+M11*365)+DAY(F11),28-DAY(F11+M11*365)+DAY(F11)))))) -> 1914-12-28 | W11: 78
B12: 7 | C12: Пром. редуктор | D12: 8А-1515-002 | I12: 3 | L12: 6000 | N12: 2000 | O12: 15 | P12: 0 | Q12: 1864 | R12: 2520 | S12: -656 | T12: -2520 | U12: 2656 | V12: =IF(OR(AND(NOT(ISBLANK(G12)),M12>0,O12>0,F12+M12*365>G12+O12*365),AND(NOT(ISBLANK(G12)),ISBLANK(M12),O12>0)),G12+O12*365+IF(DAY(G12)>=DAY(G12+O12*365),DAY(G12)-DAY(G12+O12*365),IF(OR(EXACT(MONTH(G12),$W$36:$W$37)),31-DAY(G12+O12*365)+DAY(G12),IF(OR(EXACT(MONTH(G12),$X$36:$X$37)),30-DAY(G12+O12*365)+DAY(G12),28-DAY(G12+O12*365)+DAY(G12)))),IF(AND(ISBLANK(G12),OR(ISBLANK(M12),O12>0)),F12+O12*365+IF(DAY(F12)>=DAY(F12+O12*365),DAY(F12)-DAY(F12+O12*365),IF(OR(EXACT(MONTH(F12),$W$36:$W$37)),31-DAY(F12+O12*365)+DAY(F12),IF(OR(EXACT(MONTH(F12),$X$36:$X$37)),30-DAY(F12+O12*365)+DAY(F12),28-DAY(F12+O12*365)+DAY(F12)))),F12+M12*365+IF(DAY(F12)>=DAY(F12+365*M12),DAY(F12)-DAY(F12+M12*365),IF(OR(EXACT(MONTH(F12),$W$36:$W$37)),31-DAY(F12+M12*365)+DAY(F12),IF(OR(EXACT(MONTH(F12),$X$36:$X$37)),30-DAY(F12+M12*365)+DAY(F12),28-DAY(F12+M12*365)+DAY(F12)))))) -> 1914-12-28 | W12: 79

Sheet 75
A2: Новые данные (+) | B2: № | C2: Наименование агрегата | D2: Чертёжный номер | E2: Заводской номер | F2: Дата выпуска | G2: Дата ремонта | H2: Место ремонта | I2: Количество ремонтов | J2: Гарантия до | K2: дата установки агрегата на вертолет | L2: Назнач. ресурс | N2: Межрем. ресурс | P2: Наработка до установки | R2: Наработка вертолёта при установке агрегата | S2: Наработка | U2: Остаток ресурса час. | V2: Дата снятия агрегата по выработке ресурса | W2: Бортовой номер вертолета
L3: часов | M3: лет | N3: часов | O3: лет | P3: ППР | Q3: СНЭ | S3: СНЭ | T3: ППР
B5: Вертолет 75
B6: 1 | C6: Компрессор АК-50 | D6: АК-50Т1сер3 | L6: 2250 | N6: 750 | O6: 6 | S6: =SUM(S$7,-R6,Q6) -> 2248 | T6: =IF(ISBLANK(P6),0,SUM(S$7,-R6,P6)) -> 0 | U6: =IF(ISBLANK(N6),L6-S6,IF(AND(ISBLANK(G6),L6-S6>N6-S6),N6-S6,IF(AND(ISNONTEXT(G6),L6-S6>N6-T6),N6-T6,L6-S6))) -> -1498 | V6: =IF(OR(AND(NOT(ISBLANK(G6)),M6>0,O6>0,F6+M6*365>G6+O6*365),AND(NOT(ISBLANK(G6)),ISBLANK(M6),O6>0)),G6+O6*365+IF(DAY(G6)>=DAY(G6+O6*365),DAY(G6)-DAY(G6+O6*365),IF(OR(EXACT(MONTH(G6),$W$20:$W$21)),31-DAY(G6+O6*365)+DAY(G6),IF(OR(EXACT(MONTH(G6),$X$20:$X$21)),30-DAY(G6+O6*365)+DAY(G6),28-DAY(G6+O6*365)+DAY(G6)))),IF(AND(ISBLANK(G6),OR(ISBLANK(M6),O6>0)),F6+O6*365+IF(DAY(F6)>=DAY(F6+O6*365),DAY(F6)-DAY(F6+O6*365),IF(OR(EXACT(MONTH(F6),$W$20:$W$21)),31-DAY(F6+O6*365)+DAY(F6),IF(OR(EXACT(MONTH(F6),$X$20:$X$21)),30-DAY(F6+O6*365)+DAY(F6),28-DAY(F6+O6*365)+DAY(F6)))),F6+M6*365+IF(DAY(F6)>=DAY(F6+365*M6),DAY(F6)-DAY(F6+M6*365),IF(OR(EXACT(MONTH(F6),$W$20:$W$21)),31-DAY(F6+M6*365)+DAY(F6),IF(OR(EXACT(MONTH(F6),$X$20:$X$21)),30-DAY(F6+M6*365)+DAY(F6),28-DAY(F6+M6*365)+DAY(F6)))))) -> 1905-12-28 | W6: 75
B7: 2 | C7: Г/усилитель | D7: КАУ-30Б | L7: 9000 | M7: 40 | N7: 1500 | O7: 15 | S7: 2248 | T7: 0 | U7: -748 | V7: =IF(OR(AND(NOT(ISBLANK(G7)),M7>0,O7>0,F7+M7*365>G7+O7*365),AND(NOT(ISBLANK(G7)),ISBLANK(M7),O7>0)),G7+O7*365+IF(DAY(G7)>=DAY(G7+O7*365),DAY(G7)-DAY(G7+O7*365),IF(OR(EXACT(MONTH(G7),$W$20:$W$21)),31-DAY(G7+O7*365)+DAY(G7),IF(OR(EXACT(MONTH(G7),$X$20:$X$21)),30-DAY(G7+O7*365)+DAY(G7),28-DAY(G7+O7*365)+DAY(G7)))),IF(AND(ISBLANK(G7),OR(ISBLANK(M7),O7>0)),F7+O7*365+IF(DAY(F7)>=DAY(F7+O7*365),DAY(F7)-DAY(F7+O7*365),IF(OR(EXACT(MONTH(F7),$W$20:$W$21)),31-DAY(F7+O7*365)+DAY(F7),IF(OR(EXACT(MONTH(F7),$X$20:$X$21)),30-DAY(F7+O7*365)+DAY(F7),28-DAY(F7+O7*365)+DAY(F7)))),F7+M7*365+IF(DAY(F7)>=DAY(F7+365*M7),DAY(F7)-DAY(F7+M7*365),IF(OR(EXACT(MONTH(F7),$W$20:$W$21)),31-DAY(F7+M7*365)+DAY(F7),IF(OR(EXACT(MONTH(F7),$X$20:$X$21)),30-DAY(F7+M7*365)+DAY(F7),28-DAY(F7+M7*365)+DAY(F7)))))) -> 1914-12-28 | W7: 75
B8: 3 | C8: Г/усилитель | D8: КАУ-30Б | L8: 9000 | M8: 40 | N8: 1500 | O8: 10 | S8: 2248 | T8: 0 | U8: -748 | V8: =IF(OR(AND(NOT(ISBLANK(G8)),M8>0,O8>0,F8+M8*365>G8+O8*365),AND(NOT(ISBLANK(G8)),ISBLANK(M8),O8>0)),G8+O8*365+IF(DAY(G8)>=DAY(G8+O8*365),DAY(G8)-DAY(G8+O8*365),IF(OR(EXACT(MONTH(G8),$W$20:$W$21)),31-DAY(G8+O8*365)+DAY(G8),IF(OR(EXACT(MONTH(G8),$X$20:$X$21)),30-DAY(G8+O8*365)+DAY(G8),28-DAY(G8+O8*365)+DAY(G8)))),IF(AND(ISBLANK(G8),OR(ISBLANK(M8),O8>0)),F8+O8*365+IF(DAY(F8)>=DAY(F8+O8*365),DAY(F8)-DAY(F8+O8*365),IF(OR(EXACT(MONTH(F8),$W$20:$W$21)),31-DAY(F8+O8*365)+DAY(F8),IF(OR(EXACT(MONTH(F8),$X$20:$X$21)),30-DAY(F8+O8*365)+DAY(F8),28-DAY(F8+O8*365)+DAY(F8)))),F8+M8*365+IF(DAY(F8)>=DAY(F8+365*M8),DAY(F8)-DAY(F8+M8*365),IF(OR(EXACT(MONTH(F8),$W$20:$W$21)),31-DAY(F8+M8*365)+DAY(F8),IF(OR(EXACT(MONTH(F8),$X$20:$X$21)),30-DAY(F8+M8*365)+DAY(F8),28-DAY(F8+M8*365)+DAY(F8)))))) -> 1909-12-28 | W8: 75
B9: 4 | C9: Г/усилитель | D9: КАУ-30Б | L9: 9000 | M9: 40 | N9: 1500 | O9: 15 | S9: 2248 | T9: 0 | U9: -748 | V9: =IF(OR(AND(NOT(ISBLANK(G9)),M9>0,O9>0,F9+M9*365>G9+O9*365),AND(NOT(ISBLANK(G9)),ISBLANK(M9),O9>0)),G9+O9*365+IF(DAY(G9)>=DAY(G9+O9*365),DAY(G9)-DAY(G9+O9*365),IF(OR(EXACT(MONTH(G9),$W$20:$W$21)),31-DAY(G9+O9*365)+DAY(G9),IF(OR(EXACT(MONTH(G9),$X$20:$X$21)),30-DAY(G9+O9*365)+DAY(G9),28-DAY(G9+O9*365)+DAY(G9)))),IF(AND(ISBLANK(G9),OR(ISBLANK(M9),O9>0)),F9+O9*365+IF(DAY(F9)>=DAY(F9+O9*365),DAY(F9)-DAY(F9+O9*365),IF(OR(EXACT(MONTH(F9),$W$20:$W$21)),31-DAY(F9+O9*365)+DAY(F9),IF(OR(EXACT(MONTH(F9),$X$20:$X$21)),30-DAY(F9+O9*365)+DAY(F9),28-DAY(F9+O9*365)+DAY(F9)))),F9+M9*365+IF(DAY(F9)>=DAY(F9+365*M9),DAY(F9)-DAY(F9+M9*365),IF(OR(EXACT(MONTH(F9),$W$20:$W$21)),31-DAY(F9+M9*365)+DAY(F9),IF(OR(EXACT(MONTH(F9),$X$20:$X$21)),30-DAY(F9+M9*365)+DAY(F9),28-DAY(F9+M9*365)+DAY(F9)))))) -> 1914-12-28 | W9: 75
B10: 5 | C10: Г/усилитель | D10: КАУ-30Б | L10: 9000 | M10: 40 | N10: 1500 | O10: 15 | S10: =SUM(S$7,-R10,Q10) -> 2248 | T10: =IF(ISBLANK(P10),0,SUM(S$7,-R10,P10)) -> 0 | U10: =IF(ISBLANK(N10),L10-S10,IF(AND(ISBLANK(G10),L10-S10>N10-S10),N10-S10,IF(AND(ISNONTEXT(G10),L10-S10>N10-T10),N10-T10,L10-S10))) -> -748 | V10: =IF(OR(AND(NOT(ISBLANK(G10)),M10>0,O10>0,F10+M10*365>G10+O10*365),AND(NOT(ISBLANK(G10)),ISBLANK(M10),O10>0)),G10+O10*365+IF(DAY(G10)>=DAY(G10+O10*365),DAY(G10)-DAY(G10+O10*365),IF(OR(EXACT(MONTH(G10),$W$20:$W$21)),31-DAY(G10+O10*365)+DAY(G10),IF(OR(EXACT(MONTH(G10),$X$20:$X$21)),30-DAY(G10+O10*365)+DAY(G10),28-DAY(G10+O10*365)+DAY(G10)))),IF(AND(ISBLANK(G10),OR(ISBLANK(M10),O10>0)),F10+O10*365+IF(DAY(F10)>=DAY(F10+O10*365),DAY(F10)-DAY(F10+O10*365),IF(OR(EXACT(MONTH(F10),$W$20:$W$21)),31-DAY(F10+O10*365)+DAY(F10),IF(OR(EXACT(MONTH(F10),$X$20:$X$21)),30-DAY(F10+O10*365)+DAY(F10),28-DAY(F10+O10*365)+DAY(F10)))),F10+M10*365+IF(DAY(F10)>=DAY(F10+365*M10),DAY(F10)-DAY(F10+M10*365),IF(OR(EXACT(MONTH(F10),$W$20:$W$21)),31-DAY(F10+M10*365)+DAY(F10),IF(OR(EXACT(MONTH(F10),$X$20:$X$21)),30-DAY(F10+M10*365)+DAY(F10),28-DAY(F10+M10*365)+DAY(F10)))))) -> 1914-12-28 | W10: 76
B11: 6 | C11: Г/усилитель | D11: КАУ-30Б | L11: 9000 | M11: 40 | N11: 1500 | O11: 15 | S11: 2248 | T11: 0 | U11: -748 | V11: =IF(OR(AND(NOT(ISBLANK(G11)),M11>0,O11>0,F11+M11*365>G11+O11*365),AND(NOT(ISBLANK(G11)),ISBLANK(M11),O11>0)),G11+O11*365+IF(DAY(G11)>=DAY(G11+O11*365),DAY(G11)-DAY(G11+O11*365),IF(OR(EXACT(MONTH(G11),$W$20:$W$21)),31-DAY(G11+O11*365)+DAY(G11),IF(OR(EXACT(MONTH(G11),$X$20:$X$21)),30-DAY(G11+O11*365)+DAY(G11),28-DAY(G11+O11*365)+DAY(G11)))),IF(AND(ISBLANK(G11),OR(ISBLANK(M11),O11>0)),F11+O11*365+IF(DAY(F11)>=DAY(F11+O11*365),DAY(F11)-DAY(F11+O11*365),IF(OR(EXACT(MONTH(F11),$W$20:$W$21)),31-DAY(F11+O11*365)+DAY(F11),IF(OR(EXACT(MONTH(F11),$X$20:$X$21)),30-DAY(F11+O11*365)+DAY(F11),28-DAY(F11+O11*365)+DAY(F11)))),F11+M11*365+IF(DAY(F11)>=DAY(F11+365*M11),DAY(F11)-DAY(F11+M11*365),IF(OR(EXACT(MONTH(F11),$W$20:$W$21)),31-DAY(F11+M11*365)+DAY(F11),IF(OR(EXACT(MONTH(F11),$X$20:$X$21)),30-DAY(F11+M11*365)+DAY(F11),28-DAY(F11+M11*365)+DAY(F11)))))) -> 1914-12-28 | W11: 77
B12: 7 | C12: Г/усилитель | D12: КАУ-30Б | L12: 9000 | M12: 40 | N12: 1500 | O12: 15 | S12: 2248 | T12: 0 | U12: -748 | V12: =IF(OR(AND(NOT(ISBLANK(G12)),M12>0,O12>0,F12+M12*365>G12+O12*365),AND(NOT(ISBLANK(G12)),ISBLANK(M12),O12>0)),G12+O12*365+IF(DAY(G12)>=DAY(G12+O12*365),DAY(G12)-DAY(G12+O12*365),IF(OR(EXACT(MONTH(G12),$W$20:$W$21)),31-DAY(G12+O12*365)+DAY(G12),IF(OR(EXACT(MONTH(G12),$X$20:$X$21)),30-DAY(G12+O12*365)+DAY(G12),28-DAY(G12+O12*365)+DAY(G12)))),IF(AND(ISBLANK(G12),OR(ISBLANK(M12),O12>0)),F12+O12*365+IF(DAY(F12)>=DAY(F12+O12*365),DAY(F12)-DAY(F12+O12*365),IF(OR(EXACT(MONTH(F12),$W$20:$W$21)),31-DAY(F12+O12*365)+DAY(F12),IF(OR(EXACT(MONTH(F12),$X$20:$X$21)),30-DAY(F12+O12*365)+DAY(F12),28-DAY(F12+O12*365)+DAY(F12)))),F12+M12*365+IF(DAY(F12)>=DAY(F12+365*M12),DAY(F12)-DAY(F12+M12*365),IF(OR(EXACT(MONTH(F12),$W$20:$W$21)),31-DAY(F12+M12*365)+DAY(F12),IF(OR(EXACT(MONTH(F12),$X$20:$X$21)),30-DAY(F12+M12*365)+DAY(F12),28-DAY(F12+M12*365)+DAY(F12)))))) -> 1914-12-28 | W12: 78

Sheet общ
A3: № | B3: Наименование агрегата | C3: Чертёжный номер | D3: Заводской номер | E3: Дата выпуска | F3: Дата ремонта | G3: Место ремонта | H3: Количество ремонтов | I3: Гарантия до | J3: дата установки агрегата на вертолет | K3: Назнач. ресурс | M3: Межрем. ресурс | O3: Наработка до установки | Q3: Наработка вертолёта при установке агрегата | R3: Наработка | T3: Остаток ресурса час. | U3: Дата снятия агрегата по выработке ресурса | V3: Бортовой номер вертолета
K4: часов | L4: лет | M4: часов | N4: лет | O4: ППР | P4: СНЭ | R4: СНЭ | S4: ППР
A6: 1 | B6: Двигатель | C6: ТВ3-117МТ | K6: 4500 | M6: 1143 | N6: 12 | O6: 0 | P6: 655 | R6: 2395 | S6: 999 | T6: 1 | U6: 1911-12-28 | V6: 78
A7: 2 | B7: Двигатель | C7: ТВ3-117МТ | K7: 4500 | M7: 1500 | N7: 12 | O7: 0 | P7: 875 | R7: 999 | S7: 999 | T7: 1 | U7: 1911-12-28 | V7: 78
A8: 4 | B8: Лопасть НВ | C8: 8АТ-2710-00 | K8: 2000 | L8: 7 | P8: 0 | R8: 515 | S8: 0 | T8: 1 | U8: 1906-12-28 | V8: 78
B9: Лопасть НВ | C9: 8АТ-2710-00 | K9: 2000 | L9: 7 | P9: 0 | R9: 2395 | S9: 0 | T9: 1 | U9: 1906-12-28 | V9: 78
B10: Лопасть НВ | C10: 8АТ-2710-00 | K10: 2000 | L10: 7 | P10: 0 | R10: 999 | S10: 0 | T10: 1 | U10: 1906-12-28 | V10: 78
B11: Лопасть НВ | C11: 8АТ-2710-00 | K11: 2000 | L11: 7 | P11: 0 | R11: 515 | S11: 0 | T11: 1 | U11: 1906-12-28 | V11: 78
B12: Лопасть НВ | C12: 8АТ-2710-00 | K12: 2000 | L12: 7 | P12: 0 | R12: 2395 | S12: 0 | T12: 1 | U12: 1906-12-28 | V12: 78
B13: Автомат перекоса | C13: 8-1950-000 | H13: 1 | K13: 6000 | M13: 1000 | N13: 8 | O13: 0 | P13: 1396 | R13: 2395 | S13: 999 | T13: 1 | U13: 1907-12-28 | V13: 79
B14: Гл. редуктор | C14: ВР-14 | K14: 8000 | M14: 2000 | N14: 10 | R14: 999 | S14: 0 | T14: 1001 | U14: 1909-12-28 | V14: 79
B15: Компрессор АК-50 | C15: АК-50Т1сер3 | K15: 2250 | M15: 750 | N15: 6 | P15: 236 | R15: 515 | S15: 0 | T15: 235 | U15: 1905-12-28 | V15: 79
B16: Г/усилитель | C16: РА-60Б | H16: 2 | K16: 9000 | L16: 40 | M16: 1500 | N16: 15 | O16: 0 | P16: 2042 | Q16: 2520 | R16: -478 | S16: -2520 | T16: 1978 | U16: 1914-12-28 | V16: 77
A17: 2 | B17: Вентилятор | C17: 8А-6311-00 | H17: 3 | K17: 6500 | M17: 1500 | N17: 15 | O17: 0 | P17: 2276 | Q17: 2520 | R17: -244 | S17: -2520 | T17: 1744 | U17: 1914-12-28 | V17: 77
A18: 3 | B18: КВПВ | C18: 8А-6314-00 | H18: 3 | K18: 4500 | M18: 1500 | N18: 15 | O18: 0 | P18: 2871 | Q18: 2520 | R18: 351 | S18: -2520 | T18: 1149 | U18: 1914-12-28 | V18: 77
A19: 4 | B19: Хв. Вал | C19: 8А-1516-000 | H19: 3 | K19: 6000 | M19: 2000 | N19: 14 | O19: 0 | P19: 3182 | Q19: 2520 | R19: 662 | S19: -2520 | T19: 1338 | U19: 1913-12-28 | V19: 77
A20: 5 | B20: Пром. редуктор | C20: 8А-1515-000 | H20: 3 | K20: 6000 | M20: 2000 | N20: 15 | O20: 0 | P20: 1864 | Q20: 2520 | R20: -656 | S20: -2520 | T20: 2656 | U20: 1914-12-28 | V20: 77
A21: 1 | B21: Компрессор АК-50 | C21: АК-50Т1сер3 | K21: 2250 | M21: 750 | N21: 6 | R21: 2248 | S21: 0 | T21: -1498 | U21: 1905-12-28 | V21: 75
A22: 2 | B22: Г/усилитель | C22: КАУ-30Б | K22: 9000 | L22: 40 | M22: 1500 | N22: 15 | R22: 2248 | S22: 0 | T22: -748 | U22: 1914-12-28 | V22: 75
A23: 3 | B23: Г/усилитель | C23: КАУ-30Б | K23: 9000 | L23: 40 | M23: 1500 | N23: 10 | R23: 2248 | S23: 0 | T23: -748 | U23: 1909-12-28 | V23: 75
A24: 4 | B24: Г/усилитель | C24: КАУ-30Б | K24: 9000 | L24: 40 | M24: 1500 | N24: 15 | R24: 2248 | S24: 0 | T24: -748 | U24: 1914-12-28 | V24: 75
A25: 9 | B25: Лопасть НВ | C25: 8АТ-2710-00 | K25: 3000 | L25: 7 | P25: 0 | R25: 2395 | S25: 0 | T25: 1 | U25: 1906-12-28 | V25: 78
A26: 10 | B26: Лопасть НВ | C26: 8АТ-2710-00 | K26: 3000 | L26: 7 | P26: 0 | R26: 2395 | S26: 0 | T26: 1 | U26: 1906-12-28 | V26: 78
A27: 11 | B27: Лопасть НВ | C27: 8АТ-2710-00 | K27: 3000 | L27: 7 | P27: 0 | R27: 2395 | S27: 0 | T27: 1 | U27: 1906-12-28 | V27: 78
A28: 12 | B28: Лопасть НВ | C28: 8АТ-2710-00 | K28: 3000 | L28: 7 | P28: 0 | R28: 2395 | S28: 0 | T28: 1 | U28: 1906-12-28 | V28: 78
A29: 4 | B29: Компрессор АК-50 | C29: АК-50Т1сер3 | K29: 2250 | M29: 750 | N29: 6 | P29: 236 | R29: 515 | S29: 0 | T29: 235 | U29: 1905-12-28 | V29: 79
A30: 5 | B30: Компрессор АК-50 | C30: АК-50Т1сер3 | K30: 2250 | M30: 750 | N30: 6 | P30: 236 | R30: 515 | S30: 0 | T30: 235 | U30: 1905-12-28 | V30: 79
A31: 6 | B31: Пром. редуктор | C31: 8А-1515-001 | H31: 3 | K31: 6000 | M31: 2000 | N31: 15 | O31: 0 | P31: 1864 | Q31: 2520 | R31: -656 | S31: -2520 | T31: 2656 | U31: 1914-12-28 | V31: 78
A32: 7 | B32: Пром. редуктор | C32: 8А-1515-002 | H32: 3 | K32: 6000 | M32: 2000 | N32: 15 | O32: 0 | P32: 1864 | Q32: 2520 | R32: -656 | S32: -2520 | T32: 2656 | U32: 1914-12-28 | V32: 79
A33: 5 | B33: Г/усилитель | C33: КАУ-30Б | K33: 9000 | L33: 40 | M33: 1500 | N33: 15 | R33: 2248 | S33: 0 | T33: -748 | U33: 1914-12-28 | V33: 76
A34: 6 | B34: Г/усилитель | C34: КАУ-30Б | K34: 9000 | L34: 40 | M34: 1500 | N34: 15 | R34: 2248 | S34: 0 | T34: -748 | U34: 1914-12-28 | V34: 77
A35: 7 | B35: Г/усилитель | C35: КАУ-30Б | K35: 9000 | L35: 40 | M35: 1500 | N35: 15 | R35: 2248 | S35: 0 | T35: -748 | U35: 1914-12-28 | V35: 78
